[Event "Polgar Challenge 2021"]
[Site "Online"]
[Date "2021.04.04"]
[Round "6.9"]
[White "Lei, Tingjie"]
[Black "Salimova, Nurgyul"]
[Result "1-0"]
[ECO "D10"]
[WhiteElo "2505"]
[BlackElo "2397"]
[Annotator "ChessBase"]
[PlyCount "69"]
[EventDate "2021.04.08"]
[EventType "tourn"]
[EventCountry "NET"]
[SourceTitle "playchess.com"]
[Source "ChessBase"]
[SourceQuality "1"]
[TimeControl "600+5"]

1. d4 {[%emt 0:00:00]} d5 {[%emt 0:00:00]} 2. c4 {[%emt 0:00:00]} c6 {[%emt 0:00:00]} 3. cxd5 {[%emt 0:00:39]} cxd5 {[%emt 0:00:00]} 4. Bf4 {[%emt 0:00:01]} Nc6 {[%emt 0:01:02]} 5. e3 {[%emt 0:00:03]} Nf6 {[%emt 0:00:08]} 6. Nc3 {[%emt 0:00:03]} a6 {[%emt 0:00:27]} 7. Be2 {[%emt 0:00:56]} e6 {[%emt 0:01:39]} 8. Rc1 {[%emt 0:00:12]} Bd6 {[%emt 0:00:29]} 9. Bxd6 {[%emt 0:00:19]} Qxd6 {[%emt 0:00:01]} 10. f4 {[%emt 0:00:22]} O-O {[%emt 0:00:26]} 11. Nf3 {[%emt 0:00:04]} Bd7 {[%emt 0:00:35]} 12. Ne5 {[%emt 0:00:09]} Rac8 {[%emt 0:00:22]} 13. O-O {[%emt 0:00:05]} Ne7 {[%emt 0:00:15]} 14. Bd3 {[%emt 0:01:37]} b5 {[%emt 0:00:18]} 15. Qe2 {[%emt 0:01:33]} b4 {[%emt 0:00:27]} 16. Nb1 {[%emt 0:00:03]} a5 {[%emt 0:00:10]} 17. Nd2 {[%emt 0:00:02]} a4 {[%emt 0:00:34]} 18. g4 {[%emt 0:00:22]} g6 {[%emt 0:00:41]} 19. g5 {[%emt 0:00:56]} Nh5 {[%emt 0:00:11]} 20. Ndf3 {[%emt 0:00:08]} Nf5 {[%emt 0:00:41]} 21. Nxd7 {[%emt 0:00:46]} Qxd7 {[%emt 0:00:14]} 22. Ne5 {[%emt 0:00:04]} Qa7 {[%emt 0:00:30]} 23. Bxf5 {[%emt 0:00:08]} exf5 {[%emt 0:00:04]} 24. Qb5 {[%emt 0:00:02]} Rxc1 {[%emt 0:00:16]} 25. Rxc1 {[%emt 0:00:02]} Nxf4 {[%emt 0:00:07]} 26. Nc6 {[%emt 0:01:26]} Nh3+ {[%emt 0:01:12]} 27. Kg2 {[%emt 0:00:56]} Qd7 {[%emt 0:00:07]} 28. Kxh3 {[%emt 0:00:15]} f4+ {[%emt 0:00:01]} 29. Kh4 {[%emt 0:00:02]} h5 {[%emt 0:00:18]} 30. h3 {[%emt 0:00:33]} Re8 {[%emt 0:00:18]} 31. Na7 {[%emt 0:00:03]} Qe6 {[%emt 0:00:31]} 32. Qxe8+ {[%emt 0:00:02]} Qxe8 {[%emt 0:00:01]} 33. Rc8 {[%emt 0:00:01]} Qxc8 {[%emt 0:00:03]} 34. Nxc8 {[%emt 0:00:01]} fxe3 {[%emt 0:00:36]} 35. Kg3 {[%emt 0:00:03]} 1-0

[Event "Polgar Challenge 2021"]
[Site "Online"]
[Date "2021.04.04"]
[Round "7.2"]
[White "Salimova, Nurgyul"]
[Black "Yip, Carissa"]
[Result "1-0"]
[ECO "D76"]
[WhiteElo "2397"]
[BlackElo "2430"]
[Annotator "NA"]
[PlyCount "109"]
[EventDate "2021.04.08"]
[EventType "tourn"]
[EventCountry "NET"]
[SourceTitle "playchess.com"]
[Source "ChessBase"]
[SourceQuality "1"]
[TimeControl "600+5"]

1. d4 {[%emt 0:00:00]} Nf6 {[%emt 0:00:00]} 2. c4 {[%emt 0:00:00]} g6 {[%emt 0:00:00]} 3. g3 {[%emt 0:00:02]} Bg7 {[%emt 0:00:14]} 4. Bg2 {[%emt 0:00:03]} d5 {[%emt 0:00:02]} 5. cxd5 {[%emt 0:00:20]} Nxd5 {[%emt 0:00:01]} 6. Nf3 {[%emt 0:00:05]} Nb6 {[%emt 0:00:04]} 7. O-O {[%emt 0:00:15]} Nc6 {[%emt 0:00:02]} 8. e3 {[%emt 0:00:06]} O-O {[%emt 0:00:02]} 9. Nc3 {[%emt 0:00:14]} Re8 {[%emt 0:00:11]} 10. Nh4 {[%emt 0:00:19]} e5 {[%emt 0:00:11]} 11. d5 {[%emt 0:00:04]} Nb4 {[%emt 0:00:05]} 12. e4 {[%emt 0:00:49]} c6 {[%emt 0:00:18]} 13. a3 {[%emt 0:00:38]} Na6 {[%emt 0:00:03]} 14. Be3 {[%emt 0:00:34]} cxd5 {[%emt 0:01:23]} 15. Bxb6 {[%emt 0:01:25]} Qxb6 {[%emt 0:00:03]} 16. Nxd5 {[%emt 0:00:03]} Qxb2 {[%emt 0:00:14]} 17. Qf3 {[%emt 0:01:12]} Qb5 {[%emt 0:01:12]} 18. Rab1 {[%emt 0:00:10]} Qd7 {[%emt 0:00:24]} 19. Rfc1 {[%emt 0:00:25]} b6 {[%emt 0:00:55]} 20. Bf1 {[%emt 0:00:12]} Bb7 {[%emt 0:02:18]} 21. Bb5 {[%emt 0:01:11]} Qd6 {[%emt 0:00:22]} 22. Bxe8 {[%emt 0:00:14]} Rxe8 {[%emt 0:00:02]} 23. Ng2 {[%emt 0:00:23]} Nc5 {[%emt 0:00:34]} 24. Rd1 {[%emt 0:00:14]} Qb8 {[%emt 0:01:05]} 25. Nge3 {[%emt 0:00:09]} h5 {[%emt 0:00:14]} 26. Qg2 {[%emt 0:00:12]} Ne6 {[%emt 0:00:05]} 27. f3 {[%emt 0:00:37]} Nd4 {[%emt 0:00:06]} 28. Qf2 {[%emt 0:00:26]} Ba6 {[%emt 0:00:18]} 29. Rd2 {[%emt 0:00:16]} Qd6 {[%emt 0:00:23]} 30. a4 {[%emt 0:00:10]} Bf8 {[%emt 0:00:47]} 31. Kg2 {[%emt 0:00:10]} Qd8 {[%emt 0:00:15]} 32. Nb4 {[%emt 0:00:44]} Bb7 {[%emt 0:00:06]} 33. Nbd5 {[%emt 0:00:37]} Bc5 {[%emt 0:00:09]} 34. Qf1 {[%emt 0:00:07]} Kg7 {[%emt 0:00:08]} 35. a5 {[%emt 0:00:09]} f5 {[%emt 0:00:24]} 36. axb6 {[%emt 0:00:11]} axb6 {[%emt 0:00:01]} 37. Qc4 {[%emt 0:00:08]} Rf8 {[%emt 0:00:17]} 38. Ra1 {[%emt 0:00:02]} f4 {[%emt 0:00:02]} 39. Ra7 {[%emt 0:00:06]} Rf7 {[%emt 0:00:03]} 40. Rxb7 {[%emt 0:00:11]} Rxb7 {[%emt 0:00:02]} 41. Nf1 {[%emt 0:00:01]} Rf7 {[%emt 0:00:05]} 42. Rd3 {[%emt 0:00:06]} Qf8 {[%emt 0:00:04]} 43. gxf4 {[%emt 0:00:01]} Qd8 {[%emt 0:00:08]} 44. fxe5 {[%emt 0:00:05]} Qg5+ {[%emt 0:00:01]} 45. Ng3 {[%emt 0:00:01]} h4 {[%emt 0:00:05]} 46. f4 {[%emt 0:00:01]} Qg4 {[%emt 0:00:01]} 47. h3 {[%emt 0:00:01]} Qc8 {[%emt 0:00:03]} 48. Rxd4 {[%emt 0:00:05]} hxg3 {[%emt 0:00:03]} 49. Rd3 {[%emt 0:00:08]} Qa8 {[%emt 0:00:20]} 50. e6 {[%emt 0:00:07]} Ra7 {[%emt 0:00:06]} 51. Qc3+ {[%emt 0:00:08]} Kh6 {[%emt 0:00:01]} 52. Rd2 {[%emt 0:00:08]} Ra1 {[%emt 0:00:03]} 53. Ne3 {[%emt 0:00:07]} Ra3 {[%emt 0:00:02]} 54. Ng4+ {[%emt 0:00:01]} Kh7 {[%emt 0:00:08]} 55. Rd7+ {[%emt 0:00:06]} 1-0

[Event "Polgar Challenge 2021"]
[Site "Online"]
[Date "2021.04.04"]
[Round "7.3"]
[White "Saduakassova, Dinara"]
[Black "Lei, Tingjie"]
[Result "0-1"]
[ECO "E05"]
[WhiteElo "2500"]
[BlackElo "2505"]
[Annotator "ChessBase"]
[PlyCount "114"]
[EventDate "2021.04.08"]
[EventType "tourn"]
[EventCountry "NET"]
[SourceTitle "playchess.com"]
[Source "ChessBase"]
[SourceQuality "1"]
[TimeControl "600+5"]

1. d4 {[%emt 0:00:00]} Nf6 {[%emt 0:00:00]} 2. c4 {[%emt 0:00:00]} e6 {[%emt 0:00:00]} 3. Nf3 {[%emt 0:00:04]} d5 {[%emt 0:00:00]} 4. g3 {[%emt 0:00:01]} Be7 {[%emt 0:00:00]} 5. Bg2 {[%emt 0:00:02]} O-O {[%emt 0:00:01]} 6. O-O {[%emt 0:00:01]} dxc4 {[%emt 0:00:02]} 7. Qc2 {[%emt 0:00:04]} a6 {[%emt 0:00:01]} 8. a4 {[%emt 0:00:01]} c5 {[%emt 0:00:02]} 9. dxc5 {[%emt 0:00:07]} Bxc5 {[%emt 0:00:02]} 10. Nbd2 {[%emt 0:00:15]} b5 {[%emt 0:01:50]} 11. axb5 {[%emt 0:00:09]} Bb7 {[%emt 0:00:03]} 12. Nxc4 {[%emt 0:00:51]} axb5 {[%emt 0:00:13]} 13. Rxa8 {[%emt 0:00:02]} Bxa8 {[%emt 0:00:02]} 14. Nce5 {[%emt 0:00:23]} Qc7 {[%emt 0:03:17]} 15. Be3 {[%emt 0:00:20]} Na6 {[%emt 0:00:13]} 16. Bxc5 {[%emt 0:00:25]} Qxc5 {[%emt 0:00:03]} 17. Qxc5 {[%emt 0:00:09]} Nxc5 {[%emt 0:00:02]} 18. Nd4 {[%emt 0:00:08]} Bxg2 {[%emt 0:01:14]} 19. Kxg2 {[%emt 0:00:03]} Rd8 {[%emt 0:01:57]} 20. Nxb5 {[%emt 0:01:07]} Rb8 {[%emt 0:00:23]} 21. Nd6 {[%emt 0:01:22]} Rxb2 {[%emt 0:00:20]} 22. Rc1 {[%emt 0:01:04]} Nfd7 {[%emt 0:00:23]} 23. Nxd7 {[%emt 0:00:55]} Nxd7 {[%emt 0:00:03]} 24. Rc7 {[%emt 0:00:12]} Nf8 {[%emt 0:00:04]} 25. e3 {[%emt 0:01:04]} Rd2 {[%emt 0:00:46]} 26. Nxf7 {[%emt 0:00:43]} Rd5 {[%emt 0:00:14]} 27. f4 {[%emt 0:00:48]} Rd7 {[%emt 0:00:08]} 28. Rxd7 {[%emt 0:00:02]} Nxd7 {[%emt 0:00:01]} 29. Ng5 {[%emt 0:00:01]} Nc5 {[%emt 0:00:02]} 30. Kf3 {[%emt 0:00:02]} h6 {[%emt 0:00:03]} 31. Ne4 {[%emt 0:00:02]} Nd7 {[%emt 0:00:11]} 32. g4 {[%emt 0:00:01]} Kf7 {[%emt 0:00:03]} 33. Ng3 {[%emt 0:00:03]} Nc5 {[%emt 0:00:06]} 34. h4 {[%emt 0:00:03]} Ke7 {[%emt 0:00:33]} 35. g5 {[%emt 0:00:10]} hxg5 {[%emt 0:00:22]} 36. fxg5 {[%emt 0:00:02]} Kf7 {[%emt 0:00:06]} 37. Ne4 {[%emt 0:00:04]} Nd3 {[%emt 0:00:02]} 38. h5 {[%emt 0:00:06]} Ne5+ {[%emt 0:00:02]} 39. Kf4 {[%emt 0:00:45]} Nd3+ {[%emt 0:00:01]} 40. Kg3 {[%emt 0:00:01]} Ne5 {[%emt 0:00:01]} 41. Kf4 {[%emt 0:00:07]} Nd3+ {[%emt 0:00:01]} 42. Kg4 {[%emt 0:00:01]} Ne5+ {[%emt 0:00:01]} 43. Kg3 {[%emt 0:00:02]} Nc4 {[%emt 0:00:04]} 44. Kf4 {[%emt 0:00:07]} Nb6 {[%emt 0:00:14]} 45. Nd6+ {[%emt 0:00:20]} Ke7 {[%emt 0:00:03]} 46. Nb5 {[%emt 0:01:01]} Nd5+ {[%emt 0:00:16]} 47. Ke4 {[%emt 0:00:04]} Kf7 {[%emt 0:00:00]} 48. Nd6+ {[%emt 0:00:10]} Ke7 {[%emt 0:00:01]} 49. Nc4 {[%emt 0:00:05]} Nb4 {[%emt 0:00:12]} 50. Kf4 {[%emt 0:00:07]} Nc6 {[%emt 0:00:08]} 51. e4 {[%emt 0:00:04]} Nb4 {[%emt 0:00:04]} 52. Nb6 {[%emt 0:00:02]} Kf7 {[%emt 0:00:03]} 53. Nc8 {[%emt 0:00:06]} Nd3+ {[%emt 0:00:01]} 54. Ke3 {[%emt 0:00:02]} Ne5 {[%emt 0:00:02]} 55. Nd6+ {[%emt 0:00:02]} Ke7 {[%emt 0:00:01]} 56. Nb5 {[%emt 0:00:02]} Kf7 {[%emt 0:00:04]} 57. Nd4 {[%emt 0:00:41]} Nc4+ {[%emt 0:00:06]} 0-1

[Event "Polgar Challenge 2021"]
[Site "Online"]
[Date "2021.04.04"]
[Round "7.4"]
[White "Liang, Awonder"]
[Black "Badelka, Olga"]
[Result "1-0"]
[ECO "E04"]
[WhiteElo "2592"]
[BlackElo "2433"]
[Annotator "ChessBase"]
[PlyCount "67"]
[EventDate "2021.04.08"]
[EventType "tourn"]
[EventCountry "NET"]
[SourceTitle "playchess.com"]
[Source "ChessBase"]
[SourceQuality "1"]
[TimeControl "600+5"]

1. d4 {[%emt 0:00:00]} Nf6 {[%emt 0:00:00]} 2. Nf3 {[%emt 0:00:00]} e6 {[%emt 0:00:00]} 3. c4 {[%emt 0:00:00]} d5 {[%emt 0:00:02]} 4. g3 {[%emt 0:00:00]} dxc4 {[%emt 0:00:04]} 5. Bg2 {[%emt 0:00:02]} c6 {[%emt 0:00:01]} 6. O-O {[%emt 0:00:06]} b5 {[%emt 0:00:05]} 7. a4 {[%emt 0:00:12]} Bb7 {[%emt 0:00:13]} 8. Ng5 {[%emt 0:01:38]} a6 {[%emt 0:00:15]} 9. e4 {[%emt 0:00:02]} Be7 {[%emt 0:00:20]} 10. e5 {[%emt 0:00:13]} Nd5 {[%emt 0:00:10]} 11. Qh5 {[%emt 0:00:13]} g6 {[%emt 0:01:04]} 12. Qh6 {[%emt 0:00:05]} Bf8 {[%emt 0:00:11]} 13. Qh3 {[%emt 0:00:04]} Nd7 {[%emt 0:01:22]} 14. Nc3 {[%emt 0:00:15]} Nxc3 {[%emt 0:02:03]} 15. bxc3 {[%emt 0:00:00]} Be7 {[%emt 0:00:07]} 16. Ne4 {[%emt 0:01:04]} c5 {[%emt 0:02:37]} 17. Nd6+ {[%emt 0:00:38]} Bxd6 {[%emt 0:00:03]} 18. Bxb7 {[%emt 0:00:00]} Rb8 {[%emt 0:00:21]} 19. Bc6 {[%emt 0:00:29]} Be7 {[%emt 0:00:52]} 20. axb5 {[%emt 0:00:19]} O-O {[%emt 0:00:14]} 21. bxa6 {[%emt 0:00:02]} Qc7 {[%emt 0:00:20]} 22. Qg2 {[%emt 0:00:11]} Qa7 {[%emt 0:00:12]} 23. Be3 {[%emt 0:00:07]} cxd4 {[%emt 0:00:17]} 24. cxd4 {[%emt 0:00:11]} Nb6 {[%emt 0:00:11]} 25. d5 {[%emt 0:00:37]} exd5 {[%emt 0:00:02]} 26. Bxd5 {[%emt 0:00:01]} Rfc8 {[%emt 0:00:22]} 27. e6 {[%emt 0:00:23]} f6 {[%emt 0:00:03]} 28. Bb7 {[%emt 0:00:01]} Rc7 {[%emt 0:00:12]} 29. Rfb1 {[%emt 0:00:38]} Bc5 {[%emt 0:00:02]} 30. Bf4 {[%emt 0:00:04]} Rbxb7 {[%emt 0:00:20]} 31. axb7 {[%emt 0:00:00]} Qxb7 {[%emt 0:00:01]} 32. Qxb7 {[%emt 0:00:57]} Rxb7 {[%emt 0:00:01]} 33. Rb5 {[%emt 0:00:00]} Bd4 {[%emt 0:00:33]} 34. Rd1 {[%emt 0:00:03]} 1-0

[Event "Polgar Challenge 2021"]
[Site "Online"]
[Date "2021.04.04"]
[Round "7.6"]
[White "Shuvalova, Polina"]
[Black "Mammadzada, Gunay"]
[Result "1-0"]
[ECO "B90"]
[WhiteElo "2476"]
[BlackElo "2443"]
[Annotator "ChessBase"]
[PlyCount "187"]
[EventDate "2021.04.08"]
[EventType "tourn"]
[EventCountry "NET"]
[SourceTitle "playchess.com"]
[Source "ChessBase"]
[SourceQuality "1"]
[TimeControl "600+5"]

1. e4 {[%emt 0:00:00]} c5 {[%emt 0:00:00]} 2. Nf3 {[%emt 0:00:00]} d6 {[%emt 0:00:00]} 3. d4 {[%emt 0:00:00]} cxd4 {[%emt 0:00:00]} 4. Nxd4 {[%emt 0:00:00]} Nf6 {[%emt 0:00:00]} 5. Nc3 {[%emt 0:00:02]} a6 {[%emt 0:00:04]} 6. a3 {[%emt 0:00:01]} e5 {[%emt 0:00:30]} 7. Nf5 {[%emt 0:00:04]} Bxf5 {[%emt 0:00:51]} 8. exf5 {[%emt 0:00:03]} d5 {[%emt 0:00:01]} 9. Bg5 {[%emt 0:00:05]} d4 {[%emt 0:00:02]} 10. Ne4 {[%emt 0:00:43]} Nbd7 {[%emt 0:01:38]} 11. Bd3 {[%emt 0:01:21]} Be7 {[%emt 0:01:14]} 12. Bxf6 {[%emt 0:00:09]} Nxf6 {[%emt 0:00:19]} 13. Nxf6+ {[%emt 0:00:56]} Bxf6 {[%emt 0:00:04]} 14. O-O {[%emt 0:00:06]} Qb6 {[%emt 0:00:10]} 15. Qf3 {[%emt 0:00:10]} O-O {[%emt 0:00:19]} 16. Be4 {[%emt 0:00:22]} Rac8 {[%emt 0:00:04]} 17. Rab1 {[%emt 0:00:37]} Rc7 {[%emt 0:00:18]} 18. g3 {[%emt 0:00:14]} Rfc8 {[%emt 0:00:05]} 19. h4 {[%emt 0:00:14]} Be7 {[%emt 0:01:01]} 20. Kg2 {[%emt 0:00:33]} Rb8 {[%emt 0:00:41]} 21. Rh1 {[%emt 0:00:09]} Qh6 {[%emt 0:00:02]} 22. Rbd1 {[%emt 0:00:07]} Qb6 {[%emt 0:01:02]} 23. Rb1 {[%emt 0:01:07]} Qh6 {[%emt 0:00:04]} 24. Rh3 {[%emt 0:00:10]} b5 {[%emt 0:00:39]} 25. g4 {[%emt 0:00:50]} Qd6 {[%emt 0:01:24]} 26. g5 {[%emt 0:00:09]} f6 {[%emt 0:00:02]} 27. Re1 {[%emt 0:01:21]} fxg5 {[%emt 0:00:48]} 28. f6 {[%emt 0:00:44]} Qxf6 {[%emt 0:00:27]} 29. Bxh7+ {[%emt 0:00:05]} Kh8 {[%emt 0:00:02]} 30. Qh5 {[%emt 0:01:09]} Qh6 {[%emt 0:00:11]} 31. hxg5 {[%emt 0:00:10]} Qxg5+ {[%emt 0:00:19]} 32. Qxg5 {[%emt 0:00:05]} Bxg5 {[%emt 0:00:00]} 33. Rxe5 {[%emt 0:00:25]} Bh6 {[%emt 0:00:01]} 34. Bd3 {[%emt 0:00:07]} Rc6 {[%emt 0:00:10]} 35. Rf3 {[%emt 0:00:06]} Kg8 {[%emt 0:00:09]} 36. Re7 {[%emt 0:00:07]} Rf6 {[%emt 0:00:12]} 37. Rxf6 {[%emt 0:00:05]} gxf6 {[%emt 0:00:00]} 38. Re6 {[%emt 0:00:01]} Bc1 {[%emt 0:00:02]} 39. Rxf6 {[%emt 0:00:17]} Ra8 {[%emt 0:00:12]} 40. b3 {[%emt 0:00:18]} Bxa3 {[%emt 0:00:02]} 41. f4 {[%emt 0:00:03]} Be7 {[%emt 0:00:03]} 42. Rb6 {[%emt 0:00:04]} Kf7 {[%emt 0:00:06]} 43. Kf3 {[%emt 0:00:01]} Bd8 {[%emt 0:00:04]} 44. Rd6 {[%emt 0:00:06]} Bf6 {[%emt 0:00:03]} 45. Ke4 {[%emt 0:00:01]} Ra7 {[%emt 0:00:04]} 46. Kf5 {[%emt 0:00:04]} Bg7 {[%emt 0:00:04]} 47. Rb6 {[%emt 0:00:03]} Kf8 {[%emt 0:00:04]} 48. Rb8+ {[%emt 0:00:02]} Kf7 {[%emt 0:00:04]} 49. Be4 {[%emt 0:00:02]} Ke7 {[%emt 0:00:11]} 50. Rb6 {[%emt 0:00:02]} Bf8 {[%emt 0:00:05]} 51. Bb7 {[%emt 0:00:06]} a5 {[%emt 0:00:03]} 52. Rxb5 {[%emt 0:00:04]} a4 {[%emt 0:00:00]} 53. bxa4 {[%emt 0:00:02]} Rxa4 {[%emt 0:00:04]} 54. Be4 {[%emt 0:00:07]} Ra1 {[%emt 0:00:12]} 55. Rb7+ {[%emt 0:00:03]} Kd8 {[%emt 0:00:06]} 56. Ke5 {[%emt 0:00:13]} Rf1 {[%emt 0:00:13]} 57. f5 {[%emt 0:00:07]} Be7 {[%emt 0:00:04]} 58. Kxd4 {[%emt 0:00:14]} Bf6+ {[%emt 0:00:04]} 59. Kd5 {[%emt 0:00:01]} Ra1 {[%emt 0:00:02]} 60. Ke6 {[%emt 0:00:09]} Ra6+ {[%emt 0:00:02]} 61. Kf7 {[%emt 0:00:02]} Bc3 {[%emt 0:00:01]} 62. Rb3 {[%emt 0:00:08]} Rf6+ {[%emt 0:00:04]} 63. Kg8 {[%emt 0:00:04]} Be5 {[%emt 0:00:03]} 64. Rb5 {[%emt 0:00:03]} Bc3 {[%emt 0:00:10]} 65. Rc5 {[%emt 0:00:06]} Ba1 {[%emt 0:00:05]} 66. Ra5 {[%emt 0:00:04]} Bc3 {[%emt 0:00:02]} 67. Ra7 {[%emt 0:00:03]} Ke8 {[%emt 0:00:08]} 68. Rc7 {[%emt 0:00:08]} Be5 {[%emt 0:00:06]} 69. Rc5 {[%emt 0:00:06]} Bd4 {[%emt 0:00:06]} 70. Rc4 {[%emt 0:00:03]} Be5 {[%emt 0:00:04]} 71. Rc5 {[%emt 0:00:03]} Bd4 {[%emt 0:00:01]} 72. Rd5 {[%emt 0:00:07]} Bc3 {[%emt 0:00:04]} 73. Rd3 {[%emt 0:00:01]} Be5 {[%emt 0:00:10]} 74. Kh7 {[%emt 0:00:09]} Bf4 {[%emt 0:00:06]} 75. Ra3 {[%emt 0:00:06]} Be5 {[%emt 0:00:12]} 76. Ra5 {[%emt 0:00:03]} Bc3 {[%emt 0:00:03]} 77. Ra8+ {[%emt 0:00:03]} Ke7 {[%emt 0:00:02]} 78. Ra7+ {[%emt 0:00:01]} Ke8 {[%emt 0:00:01]} 79. Rb7 {[%emt 0:00:11]} Rf7+ {[%emt 0:00:04]} 80. Kg6 {[%emt 0:00:10]} Rxb7 {[%emt 0:00:13]} 81. Bxb7 {[%emt 0:00:00]} Ke7 {[%emt 0:00:01]} 82. Be4 {[%emt 0:00:09]} Bf6 {[%emt 0:00:01]} 83. Bd3 {[%emt 0:00:02]} Bc3 {[%emt 0:00:03]} 84. Be4 {[%emt 0:00:02]} Bf6 {[%emt 0:00:10]} 85. c4 {[%emt 0:00:02]} Bd4 {[%emt 0:00:01]} 86. Bd5 {[%emt 0:00:01]} Bc5 {[%emt 0:00:14]} 87. f6+ {[%emt 0:00:03]} Kf8 {[%emt 0:00:01]} 88. Kf5 {[%emt 0:00:03]} Ke8 {[%emt 0:00:03]} 89. Ke6 {[%emt 0:00:02]} Kf8 {[%emt 0:00:06]} 90. Kd7 {[%emt 0:00:04]} Bd4 {[%emt 0:00:01]} 91. f7 {[%emt 0:00:04]} Kg7 {[%emt 0:00:13]} 92. Kd6 {[%emt 0:00:05]} Kf8 {[%emt 0:00:02]} 93. c5 {[%emt 0:00:05]} Be3 {[%emt 0:00:16]} 94. c6 {[%emt 0:00:03]} 1-0

[Event "Polgar Challenge 2021"]
[Site "Online"]
[Date "2021.04.04"]
[Round "7.7"]
[White "Bjerre, Jonas Buhl"]
[Black "Murzin, Volodar"]
[Result "1-0"]
[ECO "E97"]
[WhiteElo "2550"]
[BlackElo "2478"]
[Annotator "ChessBase"]
[PlyCount "97"]
[EventDate "2021.04.08"]
[EventType "tourn"]
[EventCountry "NET"]
[SourceTitle "playchess.com"]
[Source "ChessBase"]
[SourceQuality "1"]
[TimeControl "600+5"]

1. d4 {[%emt 0:00:00]} Nf6 {[%emt 0:00:00]} 2. c4 {[%emt 0:00:00]} g6 {[%emt 0:00:00]} 3. Nc3 {[%emt 0:00:00]} Bg7 {[%emt 0:00:00]} 4. e4 {[%emt 0:00:01]} O-O {[%emt 0:00:01]} 5. Nf3 {[%emt 0:00:02]} d6 {[%emt 0:00:02]} 6. Be2 {[%emt 0:00:01]} e5 {[%emt 0:00:02]} 7. O-O {[%emt 0:00:03]} Nc6 {[%emt 0:00:29]} 8. d5 {[%emt 0:00:01]} Ne7 {[%emt 0:00:03]} 9. Bg5 {[%emt 0:00:02]} h6 {[%emt 0:00:04]} 10. Bd2 {[%emt 0:00:03]} Nd7 {[%emt 0:00:56]} 11. Qc1 {[%emt 0:00:03]} Kh7 {[%emt 0:00:02]} 12. Qc2 {[%emt 0:00:06]} f5 {[%emt 0:00:13]} 13. exf5 {[%emt 0:00:11]} gxf5 {[%emt 0:00:08]} 14. Nh4 {[%emt 0:00:44]} a5 {[%emt 0:01:20]} 15. a3 {[%emt 0:00:38]} Kg8 {[%emt 0:00:42]} 16. g3 {[%emt 0:00:26]} Nf6 {[%emt 0:00:54]} 17. b4 {[%emt 0:00:15]} Qe8 {[%emt 0:00:36]} 18. Nb5 {[%emt 0:00:49]} Qd7 {[%emt 0:00:13]} 19. Rad1 {[%emt 0:01:25]} axb4 {[%emt 0:00:55]} 20. axb4 {[%emt 0:00:06]} f4 {[%emt 0:00:04]} 21. Bf3 {[%emt 0:01:09]} Nfxd5 {[%emt 0:01:07]} 22. cxd5 {[%emt 0:00:59]} Qxb5 {[%emt 0:00:03]} 23. Qxc7 {[%emt 0:00:04]} Nf5 {[%emt 0:00:03]} 24. Nxf5 {[%emt 0:00:37]} Bxf5 {[%emt 0:00:04]} 25. Qxd6 {[%emt 0:00:12]} Bd3 {[%emt 0:01:50]} 26. Bg2 {[%emt 0:01:19]} Bxf1 {[%emt 0:00:31]} 27. Bxf1 {[%emt 0:00:03]} Qa4 {[%emt 0:00:05]} 28. Rc1 {[%emt 0:00:13]} Rf7 {[%emt 0:01:19]} 29. Bh3 {[%emt 0:00:13]} Kh8 {[%emt 0:00:08]} 30. Be6 {[%emt 0:00:27]} Rff8 {[%emt 0:00:02]} 31. Qe7 {[%emt 0:00:29]} e4 {[%emt 0:00:29]} 32. Bxf4 {[%emt 0:00:36]} Rae8 {[%emt 0:00:07]} 33. Qc7 {[%emt 0:00:11]} Qa2 {[%emt 0:00:04]} 34. Be3 {[%emt 0:00:18]} Qe2 {[%emt 0:00:03]} 35. Qc2 {[%emt 0:00:11]} Qf3 {[%emt 0:00:04]} 36. Qd1 {[%emt 0:00:05]} Qf6 {[%emt 0:00:04]} 37. Qg4 {[%emt 0:00:09]} Qb2 {[%emt 0:00:04]} 38. Rc7 {[%emt 0:00:04]} Be5 {[%emt 0:00:10]} 39. Qxe4 {[%emt 0:00:24]} Qa1+ {[%emt 0:00:09]} 40. Rc1 {[%emt 0:00:05]} Qb2 {[%emt 0:00:01]} 41. Qg6 {[%emt 0:00:13]} Bg7 {[%emt 0:00:04]} 42. Rc7 {[%emt 0:00:07]} Ra8 {[%emt 0:00:07]} 43. Bf5 {[%emt 0:00:11]} Rxf5 {[%emt 0:00:04]} 44. Qxf5 {[%emt 0:00:01]} Rf8 {[%emt 0:00:04]} 45. Qg6 {[%emt 0:00:07]} Qe5 {[%emt 0:00:04]} 46. Rf7 {[%emt 0:00:12]} Ra8 {[%emt 0:00:03]} 47. Qe6 {[%emt 0:00:04]} Qh5 {[%emt 0:00:09]} 48. Kg2 {[%emt 0:00:04]} Rd8 {[%emt 0:00:11]} 49. d6 {[%emt 0:00:06]} 1-0